[Event "Titled Tuesday Blitz December 06 Early 2022"]
[White "Sadubayev, Airat"]
[Black "Bacrot, Etienne"]
[WhiteFideId "13713264"]
[BlackFideId "605506"]
[WhiteElo "2160"]
[BlackElo "2667"]
[Result "0-1"]
[Round "03"]
[TimeControl "180+1"]
[Date "2022.12.06"]
[WhiteClock "0:00:03"]
[BlackClock "0:00:09"]

1. d4 {[%clk 0:02:59]}  Nf6 {[%clk 0:02:59]} 2. c4 {[%clk 0:02:59]}  c6 {[%clk 0:03:00]} 3. Nc3 {[%clk 0:02:58]}  d5 {[%clk 0:03:00]} 4. e3 {[%clk 0:02:57]}  Bf5 {[%clk 0:02:57]} 5. cxd5 {[%clk 0:02:57]}  cxd5 {[%clk 0:02:58]} 6. Qb3 {[%clk 0:02:57]}  Nc6 {[%clk 0:02:58]} 7. Qxb7 {[%clk 0:02:54]}  Bd7 {[%clk 0:02:57]} 8. Qb3 {[%clk 0:02:53]}  e5 {[%clk 0:02:52]} 9. dxe5 {[%clk 0:02:42]}  Rb8 {[%clk 0:02:51]} 10. Qd1 {[%clk 0:02:40]}  Nxe5 {[%clk 0:02:51]} 11. Be2 {[%clk 0:02:40]}  Bd6 {[%clk 0:02:48]} 12. Nf3 {[%clk 0:02:40]}  O-O {[%clk 0:02:44]} 13. O-O {[%clk 0:02:38]}  Qc7 {[%clk 0:02:42]} 14. h3 {[%clk 0:02:33]}  Rfd8 {[%clk 0:02:41]} 15. a4 {[%clk 0:02:30]}  Nxf3+ {[%clk 0:02:21]} 16. Bxf3 {[%clk 0:02:28]}  Be5 {[%clk 0:02:14]} 17. Qd3 {[%clk 0:02:23]}  Qc5 {[%clk 0:01:51]} 18. Rd1 {[%clk 0:02:07]}  Rb3 {[%clk 0:01:26]} 19. Qd2 {[%clk 0:01:50]}  Bf5 {[%clk 0:01:06]} 20. Nb5 {[%clk 0:01:25]}  Bc2 {[%clk 0:00:51]} 21. Re1 {[%clk 0:01:22]}  Re8 {[%clk 0:00:37]} 22. Nc3 {[%clk 0:00:59]}  Bg6 {[%clk 0:00:30]} 23. Qd1 {[%clk 0:00:44]}  Rbb8 {[%clk 0:00:20]} 24. Nb5 {[%clk 0:00:43]}  Bc2 {[%clk 0:00:13]} 25. Qd2 {[%clk 0:00:41]}  Be4 {[%clk 0:00:13]} 26. Be2 {[%clk 0:00:31]}  a6 {[%clk 0:00:11]} 27. Nc3 {[%clk 0:00:24]}  Bg6 {[%clk 0:00:10]} 28. Bxa6 {[%clk 0:00:20]}  Rbd8 {[%clk 0:00:08]} 29. Bb5 {[%clk 0:00:15]}  Rf8 {[%clk 0:00:05]} 30. Qe2 {[%clk 0:00:10]}  Bb8 {[%clk 0:00:06]} 31. Qf3 {[%clk 0:00:05]}  Be4 {[%clk 0:00:06]} 32. Nxe4 {[%clk 0:00:03]}  Nxe4 {[%clk 0:00:07]} 33. Qe2 {[%clk 0:00:04]}  Qd6 {[%clk 0:00:07]} 34. f4 {[%clk 0:00:03]}  Qg6 {[%clk 0:00:06]} 35. Qf3 {[%clk 0:00:03]}  Ba7 {[%clk 0:00:07]} 36. Kh1 {[%clk 0:00:03]}  Rc8 {[%clk 0:00:07]} 37. Kh2 {[%clk 0:00:03]}  h5 {[%clk 0:00:07]} 38. Re2 {[%clk 0:00:03]}  h4 {[%clk 0:00:07]} 39. Bd2 {[%clk 0:00:03]}  Rc2 {[%clk 0:00:07]} 40. Bc3 {[%clk 0:00:03]}  Qg3+ {[%clk 0:00:07]} 41. Qxg3 {[%clk 0:00:02]}  hxg3+ {[%clk 0:00:08]} 42. Kh1 {[%clk 0:00:02]}  Rxe2 {[%clk 0:00:08]} 43. Bxe2 {[%clk 0:00:03]}  Bxe3 {[%clk 0:00:08]} 44. Be1 {[%clk 0:00:02]}  d4 {[%clk 0:00:08]} 45. a5 {[%clk 0:00:02]}  Ra8 {[%clk 0:00:07]} 46. Bd3 {[%clk 0:00:02]}  Nc5 {[%clk 0:00:07]} 47. Bc4 {[%clk 0:00:02]}  d3 {[%clk 0:00:07]} 48. b4 {[%clk 0:00:01]}  Ne4 {[%clk 0:00:08]} 49. Bxd3 {[%clk 0:00:01]}  Nf2+ {[%clk 0:00:07]} 50. Bxf2 {[%clk 0:00:02]}  gxf2 {[%clk 0:00:08]} 51. g3 {[%clk 0:00:02]}  Bd4 {[%clk 0:00:08]} 52. Kg2 {[%clk 0:00:03]}  Bxa1 {[%clk 0:00:08]} 53. b5 {[%clk 0:00:03]}  Bc3 {[%clk 0:00:08]} 54. a6 {[%clk 0:00:04]}  Bd4 {[%clk 0:00:07]} 55. Be4 {[%clk 0:00:04]}  Ra7 {[%clk 0:00:07]} 56. Bb7 {[%clk 0:00:04]}  Bb6 {[%clk 0:00:08]} 57. Kf1 {[%clk 0:00:04]}  Kf8 {[%clk 0:00:08]} 58. g4 {[%clk 0:00:05]}  g6 {[%clk 0:00:09]} 59. Ke2 {[%clk 0:00:05]}  Ke7 {[%clk 0:00:09]} 60. h4 {[%clk 0:00:06]}  Kf6 {[%clk 0:00:09]} 61. Kf1 {[%clk 0:00:05]}  Kg7 {[%clk 0:00:09]} 62. Ke2 {[%clk 0:00:05]}  f5 {[%clk 0:00:09]} 63. g5 {[%clk 0:00:03]}  Be3 {[%clk 0:00:07]} 64. Kf1 {[%clk 0:00:03]}  Kf7 {[%clk 0:00:06]} 65. Ke2 {[%clk 0:00:03]}  Ke6 {[%clk 0:00:06]} 66. Kf1 {[%clk 0:00:03]}  Rxb7 {[%clk 0:00:05]} 67. axb7 {[%clk 0:00:02]}  Bxf4 {[%clk 0:00:06]} 68. Kxf2 {[%clk 0:00:03]}  Bb8 {[%clk 0:00:06]} 69. Kf3 {[%clk 0:00:03]}  Ke5 {[%clk 0:00:07]} 70. Ke3 {[%clk 0:00:03]}  f4+ {[%clk 0:00:07]} 71. Kf3 {[%clk 0:00:04]}  Kf5 {[%clk 0:00:08]} 72. Kg2 {[%clk 0:00:03]}  Kg4 {[%clk 0:00:08]} 73. Kf2 {[%clk 0:00:02]}  Kxh4 {[%clk 0:00:08]} 74. Kf3 {[%clk 0:00:03]}  Kxg5 {[%clk 0:00:09]} 0-1


[Site "https://www.chess.com"]

[Event "Titled Tuesday Blitz December 06 Early 2022"]
[White "Salman, Pavel"]
[Black "Timofeev, Artyom"]
[WhiteFideId "24153753"]
[BlackFideId "4140419"]
[WhiteElo "2187"]
[BlackElo "2586"]
[Result "0-1"]
[Round "03"]
[TimeControl "180+1"]
[Date "2022.12.07"]
[WhiteClock "0:00:06"]
[BlackClock "0:00:44"]

1. Nf3 {[%clk 0:03:00]}  d5 {[%clk 0:02:59]} 2. g3 {[%clk 0:03:00]}  c5 {[%clk 0:02:58]} 3. Bg2 {[%clk 0:03:00]}  Nc6 {[%clk 0:02:58]} 4. O-O {[%clk 0:03:01]}  e5 {[%clk 0:02:58]} 5. d3 {[%clk 0:03:01]}  Nf6 {[%clk 0:02:58]} 6. e4 {[%clk 0:03:01]}  d4 {[%clk 0:02:56]} 7. a4 {[%clk 0:03:00]}  Bd6 {[%clk 0:02:54]} 8. Na3 {[%clk 0:03:01]}  O-O {[%clk 0:02:54]} 9. Nc4 {[%clk 0:03:01]}  Bc7 {[%clk 0:02:54]} 10. Nh4 {[%clk 0:03:01]}  Be6 {[%clk 0:02:49]} 11. b3 {[%clk 0:03:01]}  a6 {[%clk 0:02:43]} 12. Nf5 {[%clk 0:02:43]}  b5 {[%clk 0:02:37]} 13. axb5 {[%clk 0:02:30]}  axb5 {[%clk 0:02:37]} 14. Rxa8 {[%clk 0:02:30]}  Qxa8 {[%clk 0:02:37]} 15. Nd2 {[%clk 0:02:21]}  Nb4 {[%clk 0:02:33]} 16. Nf3 {[%clk 0:01:58]}  Qa2 {[%clk 0:02:31]} 17. Ne1 {[%clk 0:01:55]}  Qb1 {[%clk 0:02:22]} 18. f4 {[%clk 0:01:38]}  Na2 {[%clk 0:02:20]} 19. Nf3 {[%clk 0:01:35]}  Qxc1 {[%clk 0:02:14]} 20. Qxc1 {[%clk 0:01:36]}  Nxc1 {[%clk 0:02:14]} 21. Rxc1 {[%clk 0:01:37]}  exf4 {[%clk 0:02:14]} 22. gxf4 {[%clk 0:01:21]}  Bxf4 {[%clk 0:02:14]} 23. Ra1 {[%clk 0:01:21]}  Re8 {[%clk 0:02:10]} 24. Ra5 {[%clk 0:01:19]}  Bd7 {[%clk 0:02:08]} 25. Kf2 {[%clk 0:01:14]}  Bxf5 {[%clk 0:02:05]} 26. exf5 {[%clk 0:01:13]}  Ng4+ {[%clk 0:02:05]} 27. Kg1 {[%clk 0:01:11]}  h5 {[%clk 0:02:01]} 28. Rxb5 {[%clk 0:01:10]}  Re2 {[%clk 0:02:00]} 29. Rxc5 {[%clk 0:01:07]}  Be3+ {[%clk 0:02:00]} 30. Kf1 {[%clk 0:00:49]}  Rf2+ {[%clk 0:01:59]} 31. Ke1 {[%clk 0:00:49]}  Rxg2 {[%clk 0:01:59]} 32. h3 {[%clk 0:00:46]}  Nf6 {[%clk 0:01:27]} 33. b4 {[%clk 0:00:46]}  Rg3 {[%clk 0:01:24]} 34. Ke2 {[%clk 0:00:42]}  Rg2+ {[%clk 0:01:15]} 35. Ke1 {[%clk 0:00:41]}  g5 {[%clk 0:01:09]} 36. fxg6 {[%clk 0:00:38]}  Rxg6 {[%clk 0:01:07]} 37. b5 {[%clk 0:00:37]}  Nd7 {[%clk 0:01:05]} 38. Rc8+ {[%clk 0:00:36]}  Kg7 {[%clk 0:01:05]} 39. h4 {[%clk 0:00:36]}  Nb6 {[%clk 0:01:03]} 40. Rc5 {[%clk 0:00:30]}  Rg3 {[%clk 0:00:52]} 41. Ke2 {[%clk 0:00:28]}  Rg2+ {[%clk 0:00:52]} 42. Ke1 {[%clk 0:00:29]}  Rg3 {[%clk 0:00:52]} 43. Ke2 {[%clk 0:00:29]}  Na4 {[%clk 0:00:52]} 44. Rf5 {[%clk 0:00:13]}  Nc3+ {[%clk 0:00:51]} 45. Kf1 {[%clk 0:00:13]}  Kg6 {[%clk 0:00:50]} 46. Nxd4 {[%clk 0:00:10]}  Bxd4 {[%clk 0:00:48]} 47. Rf4 {[%clk 0:00:08]}  Nxb5 {[%clk 0:00:46]} 48. c3 {[%clk 0:00:06]}  Bxc3 {[%clk 0:00:44]} 0-1


[Site "https://www.chess.com"]

[Event "Titled Tuesday Blitz December 06 Early 2022"]
[White "Samaganova, Aleksandra"]
[Black "Postnikov, Artem"]
[WhiteFideId "13800221"]
[BlackFideId "34153575"]
[WhiteElo "1864"]
[BlackElo "2243"]
[Result "1-0"]
[Round "03"]
[TimeControl "180+1"]
[Date "2022.12.07"]
[WhiteClock "0:00:02"]
[BlackClock "0:00:03"]

1. c4 {[%clk 0:03:00]}  Nf6 {[%clk 0:02:47]} 2. Nc3 {[%clk 0:02:59]}  e6 {[%clk 0:02:46]} 3. e4 {[%clk 0:02:59]}  d5 {[%clk 0:02:47]} 4. e5 {[%clk 0:02:59]}  d4 {[%clk 0:02:47]} 5. exf6 {[%clk 0:02:58]}  dxc3 {[%clk 0:02:47]} 6. bxc3 {[%clk 0:02:59]}  Qxf6 {[%clk 0:02:45]} 7. Nf3 {[%clk 0:03:00]}  Nc6 {[%clk 0:02:46]} 8. Bd3 {[%clk 0:02:59]}  e5 {[%clk 0:02:41]} 9. Be4 {[%clk 0:02:59]}  Bd6 {[%clk 0:02:34]} 10. O-O {[%clk 0:02:59]}  O-O {[%clk 0:02:33]} 11. d4 {[%clk 0:02:59]}  h6 {[%clk 0:02:21]} 12. c5 {[%clk 0:02:55]}  Be7 {[%clk 0:02:22]} 13. Bxc6 {[%clk 0:02:43]}  bxc6 {[%clk 0:02:11]} 14. Nxe5 {[%clk 0:02:43]}  Bxc5 {[%clk 0:02:08]} 15. Qa4 {[%clk 0:02:27]}  Bd6 {[%clk 0:02:00]} 16. Nc4 {[%clk 0:02:10]}  c5 {[%clk 0:01:55]} 17. Be3 {[%clk 0:02:04]}  cxd4 {[%clk 0:01:45]} 18. Bxd4 {[%clk 0:02:03]}  Qg6 {[%clk 0:01:46]} 19. g3 {[%clk 0:01:55]}  Bb7 {[%clk 0:01:29]} 20. Rfe1 {[%clk 0:01:46]}  c5 {[%clk 0:01:07]} 21. Qd7 {[%clk 0:01:20]}  cxd4 {[%clk 0:00:57]} 22. Nxd6 {[%clk 0:00:57]}  Rfd8 {[%clk 0:00:07]} 23. Qxb7 {[%clk 0:00:48]}  Qxd6 {[%clk 0:00:08]} 24. cxd4 {[%clk 0:00:44]}  Qxd4 {[%clk 0:00:08]} 25. Rac1 {[%clk 0:00:38]}  Qb6 {[%clk 0:00:09]} 26. Qe7 {[%clk 0:00:36]}  Rf8 {[%clk 0:00:06]} 27. Rc7 {[%clk 0:00:35]}  a5 {[%clk 0:00:06]} 28. a3 {[%clk 0:00:31]}  a4 {[%clk 0:00:05]} 29. Rd1 {[%clk 0:00:31]}  Rae8 {[%clk 0:00:04]} 30. Qd7 {[%clk 0:00:27]}  Qb3 {[%clk 0:00:05]} 31. Rd3 {[%clk 0:00:17]}  Qb1+ {[%clk 0:00:04]} 32. Kg2 {[%clk 0:00:18]}  Re1 {[%clk 0:00:03]} 33. Rf3 {[%clk 0:00:06]}  Rg1+ {[%clk 0:00:03]} 34. Kh3 {[%clk 0:00:06]}  Qf1+ {[%clk 0:00:03]} 35. Kg4 {[%clk 0:00:03]}  Qe2 {[%clk 0:00:03]} 36. Qe7 {[%clk 0:00:02]} 1-0


[Site "https://www.chess.com"]

[Event "Titled Tuesday Blitz December 06 Early 2022"]
[White "Sargsyan, Anna M."]
[Black "Vifleemskaia, Svetlana"]
[WhiteFideId "13308130"]
[BlackFideId "4129490"]
[WhiteElo "2284"]
[BlackElo "1930"]
[Result "1-0"]
[Round "03"]
[TimeControl "180+1"]
[Date "2022.12.07"]
[WhiteClock "0:01:20"]
[BlackClock "0:00:06"]

1. d4 {[%clk 0:02:59]}  Nf6 {[%clk 0:02:54]} 2. c4 {[%clk 0:02:59]}  e6 {[%clk 0:02:53]} 3. Nf3 {[%clk 0:02:54]}  Bb4+ {[%clk 0:02:52]} 4. Bd2 {[%clk 0:02:52]}  Qe7 {[%clk 0:02:52]} 5. g3 {[%clk 0:02:52]}  O-O {[%clk 0:02:52]} 6. Bg2 {[%clk 0:02:52]}  Nc6 {[%clk 0:02:53]} 7. O-O {[%clk 0:02:51]}  Bxd2 {[%clk 0:02:52]} 8. Qxd2 {[%clk 0:02:50]}  a5 {[%clk 0:02:52]} 9. Nc3 {[%clk 0:02:49]}  d6 {[%clk 0:02:52]} 10. e4 {[%clk 0:02:47]}  e5 {[%clk 0:02:52]} 11. d5 {[%clk 0:02:46]}  Nb8 {[%clk 0:02:51]} 12. a3 {[%clk 0:02:44]}  a4 {[%clk 0:02:48]} 13. Qc2 {[%clk 0:02:44]}  Nbd7 {[%clk 0:02:40]} 14. Nxa4 {[%clk 0:02:39]}  Nxe4 {[%clk 0:02:39]} 15. Qxe4 {[%clk 0:02:36]}  Rxa4 {[%clk 0:02:37]} 16. b4 {[%clk 0:02:36]}  b6 {[%clk 0:02:07]} 17. Nd4 {[%clk 0:02:31]}  Qf6 {[%clk 0:01:45]} 18. Nb5 {[%clk 0:02:20]}  Ba6 {[%clk 0:01:32]} 19. Nxc7 {[%clk 0:02:11]}  Qg6 {[%clk 0:01:23]} 20. Qe2 {[%clk 0:01:51]}  Rc8 {[%clk 0:00:46]} 21. Nxa6 {[%clk 0:01:36]}  Rxa6 {[%clk 0:00:45]} 22. c5 {[%clk 0:01:36]}  Ra7 {[%clk 0:00:41]} 23. c6 {[%clk 0:01:36]}  Nf6 {[%clk 0:00:41]} 24. a4 {[%clk 0:01:36]}  e4 {[%clk 0:00:39]} 25. Qb5 {[%clk 0:01:34]}  Rac7 {[%clk 0:00:31]} 26. Rfd1 {[%clk 0:01:31]}  Qg5 {[%clk 0:00:23]} 27. Qxb6 {[%clk 0:01:27]}  h5 {[%clk 0:00:10]} 28. Qe3 {[%clk 0:01:23]}  Qe5 {[%clk 0:00:08]} 29. Qd4 {[%clk 0:01:21]}  Qf5 {[%clk 0:00:06]} 30. b5 {[%clk 0:01:20]} 1-0


[Site "https://www.chess.com"]

[Event "Titled Tuesday Blitz December 06 Early 2022"]
[White "Schekachikhin, Maksim"]
[Black "Battlecruiser_Operational"]
[WhiteFideId "24177830"]
[WhiteElo "2272"]
[BlackElo "2228"]
[Result "1-0"]
[Round "03"]
[TimeControl "180+1"]
[Date "2022.12.07"]
[WhiteClock "0:00:19"]
[BlackClock "0:00:03"]

1. c4 {[%clk 0:03:00]}  c6 {[%clk 0:03:00]} 2. e4 {[%clk 0:02:54]}  e5 {[%clk 0:02:59]} 3. Nf3 {[%clk 0:02:49]}  Qc7 {[%clk 0:02:59]} 4. Nc3 {[%clk 0:02:48]}  Bc5 {[%clk 0:02:51]} 5. g3 {[%clk 0:02:41]}  a5 {[%clk 0:02:42]} 6. Bg2 {[%clk 0:02:39]}  Ne7 {[%clk 0:02:41]} 7. O-O {[%clk 0:02:33]}  d6 {[%clk 0:02:40]} 8. d4 {[%clk 0:02:33]}  exd4 {[%clk 0:02:32]} 9. Nxd4 {[%clk 0:02:33]}  O-O {[%clk 0:02:32]} 10. Be3 {[%clk 0:02:32]}  Na6 {[%clk 0:02:28]} 11. f4 {[%clk 0:02:24]}  f5 {[%clk 0:02:24]} 12. Qd2 {[%clk 0:02:21]}  Bd7 {[%clk 0:02:18]} 13. Rad1 {[%clk 0:02:15]}  Rae8 {[%clk 0:02:06]} 14. Nxf5 {[%clk 0:02:06]}  Nxf5 {[%clk 0:02:06]} 15. Bxc5 {[%clk 0:02:06]}  dxc5 {[%clk 0:01:27]} 16. exf5 {[%clk 0:01:16]}  Bxf5 {[%clk 0:01:28]} 17. Rfe1 {[%clk 0:01:10]}  Nb4 {[%clk 0:01:22]} 18. Rxe8 {[%clk 0:01:06]}  Rxe8 {[%clk 0:01:23]} 19. Re1 {[%clk 0:01:06]}  Rd8 {[%clk 0:01:17]} 20. Qe3 {[%clk 0:01:00]}  Nd3 {[%clk 0:01:10]} 21. Re2 {[%clk 0:00:58]}  Qd7 {[%clk 0:01:00]} 22. Be4 {[%clk 0:00:54]}  Bxe4 {[%clk 0:00:39]} 23. Qxe4 {[%clk 0:00:54]}  Qd4+ {[%clk 0:00:35]} 24. Qxd4 {[%clk 0:00:54]}  cxd4 {[%clk 0:00:36]} 25. Ne4 {[%clk 0:00:52]}  Nb4 {[%clk 0:00:28]} 26. a3 {[%clk 0:00:51]}  d3 {[%clk 0:00:25]} 27. Rd2 {[%clk 0:00:50]}  Nc2 {[%clk 0:00:22]} 28. Nc5 {[%clk 0:00:46]}  Ne3 {[%clk 0:00:20]} 29. b3 {[%clk 0:00:42]}  b5 {[%clk 0:00:18]} 30. cxb5 {[%clk 0:00:42]}  cxb5 {[%clk 0:00:18]} 31. Rxd3 {[%clk 0:00:42]}  Rxd3 {[%clk 0:00:15]} 32. Nxd3 {[%clk 0:00:43]}  Nc2 {[%clk 0:00:15]} 33. a4 {[%clk 0:00:41]}  bxa4 {[%clk 0:00:13]} 34. bxa4 {[%clk 0:00:42]}  Nb4 {[%clk 0:00:10]} 35. Nc5 {[%clk 0:00:33]}  Nd5 {[%clk 0:00:09]} 36. Kf2 {[%clk 0:00:32]}  Kf7 {[%clk 0:00:06]} 37. Ke2 {[%clk 0:00:32]}  Ke7 {[%clk 0:00:06]} 38. Kd3 {[%clk 0:00:32]}  Kd6 {[%clk 0:00:04]} 39. Nb7+ {[%clk 0:00:32]}  Kc7 {[%clk 0:00:04]} 40. Nxa5 {[%clk 0:00:33]}  Nb6 {[%clk 0:00:04]} 41. Nc4 {[%clk 0:00:28]}  Nxa4 {[%clk 0:00:04]} 42. Ke4 {[%clk 0:00:25]}  Kd7 {[%clk 0:00:02]} 43. f5 {[%clk 0:00:24]}  Ke7 {[%clk 0:00:03]} 44. Ne5 {[%clk 0:00:22]}  Nc5+ {[%clk 0:00:03]} 45. Kf4 {[%clk 0:00:22]}  Nb7 {[%clk 0:00:03]} 46. g4 {[%clk 0:00:22]}  Nd6 {[%clk 0:00:04]} 47. h4 {[%clk 0:00:22]}  h6 {[%clk 0:00:04]} 48. Nc6+ {[%clk 0:00:21]}  Kf7 {[%clk 0:00:04]} 49. Nd8+ {[%clk 0:00:20]}  Ke7 {[%clk 0:00:04]} 50. Ne6 {[%clk 0:00:20]}  g6 {[%clk 0:00:04]} 51. Ng7 {[%clk 0:00:18]}  gxf5 {[%clk 0:00:04]} 52. Nxf5+ {[%clk 0:00:18]}  Nxf5 {[%clk 0:00:04]} 53. Kxf5 {[%clk 0:00:19]}  Kf7 {[%clk 0:00:04]} 54. h5 {[%clk 0:00:18]}  Kg7 {[%clk 0:00:02]} 55. Ke6 {[%clk 0:00:18]}  Kf8 {[%clk 0:00:02]} 56. Kf6 {[%clk 0:00:19]}  Kg8 {[%clk 0:00:03]} 57. Kg6 {[%clk 0:00:19]} 1-0


[Site "https://www.chess.com"]

[Event "Titled Tuesday Blitz December 06 Early 2022"]
[White "Shubenkova, Veronika"]
[Black "Riehle, Marco"]
[WhiteFideId "44124040"]
[BlackFideId "12904392"]
[WhiteElo "2027"]
[BlackElo "2462"]
[Result "0-1"]
[Round "03"]
[TimeControl "180+1"]
[Date "2022.12.07"]
[WhiteClock "0:00:15"]
[BlackClock "0:01:07"]

1. e4 {[%clk 0:03:00]}  e5 {[%clk 0:02:58]} 2. Nf3 {[%clk 0:02:59]}  Nf6 {[%clk 0:02:57]} 3. Nxe5 {[%clk 0:02:57]}  Nxe4 {[%clk 0:02:56]} 4. d3 {[%clk 0:02:58]}  Nf6 {[%clk 0:02:55]} 5. Be2 {[%clk 0:02:57]}  d6 {[%clk 0:02:54]} 6. Nf3 {[%clk 0:02:57]}  d5 {[%clk 0:02:55]} 7. d4 {[%clk 0:02:56]}  Bd6 {[%clk 0:02:55]} 8. O-O {[%clk 0:02:52]}  O-O {[%clk 0:02:55]} 9. Bd3 {[%clk 0:02:50]}  Bg4 {[%clk 0:02:53]} 10. h3 {[%clk 0:02:50]}  Bh5 {[%clk 0:02:53]} 11. Bg5 {[%clk 0:02:49]}  Nbd7 {[%clk 0:02:53]} 12. Nbd2 {[%clk 0:02:47]}  c5 {[%clk 0:02:53]} 13. c3 {[%clk 0:02:47]}  c4 {[%clk 0:02:52]} 14. Bf5 {[%clk 0:02:45]}  Bg6 {[%clk 0:02:52]} 15. Qc2 {[%clk 0:02:44]}  Re8 {[%clk 0:02:51]} 16. Rae1 {[%clk 0:02:43]}  Qb6 {[%clk 0:02:45]} 17. Bxg6 {[%clk 0:02:27]}  hxg6 {[%clk 0:02:43]} 18. Rxe8+ {[%clk 0:02:05]}  Rxe8 {[%clk 0:02:42]} 19. Re1 {[%clk 0:02:06]}  Rxe1+ {[%clk 0:02:41]} 20. Nxe1 {[%clk 0:02:07]}  Bc7 {[%clk 0:02:31]} 21. g3 {[%clk 0:02:06]}  Qe6 {[%clk 0:02:29]} 22. Ng2 {[%clk 0:02:05]}  b5 {[%clk 0:02:27]} 23. h4 {[%clk 0:02:04]}  Qe2 {[%clk 0:02:18]} 24. Qc1 {[%clk 0:01:56]}  Ne4 {[%clk 0:02:05]} 25. Nxe4 {[%clk 0:01:54]}  dxe4 {[%clk 0:02:06]} 26. Bf4 {[%clk 0:01:50]}  Bd8 {[%clk 0:01:57]} 27. Be3 {[%clk 0:01:42]}  Nf6 {[%clk 0:01:54]} 28. Nf4 {[%clk 0:01:34]}  Qf3 {[%clk 0:01:53]} 29. Qd2 {[%clk 0:01:32]}  Bc7 {[%clk 0:01:47]} 30. d5 {[%clk 0:01:23]}  Bxf4 {[%clk 0:01:43]} 31. Bxf4 {[%clk 0:01:23]}  Qd3 {[%clk 0:01:43]} 32. d6 {[%clk 0:01:16]}  Qxd2 {[%clk 0:01:41]} 33. Bxd2 {[%clk 0:01:16]}  Kf8 {[%clk 0:01:42]} 34. Be3 {[%clk 0:01:15]}  a6 {[%clk 0:01:41]} 35. Kf1 {[%clk 0:01:04]}  Ke8 {[%clk 0:01:40]} 36. Bc5 {[%clk 0:01:01]}  Kd7 {[%clk 0:01:32]} 37. Ke2 {[%clk 0:00:58]}  Nd5 {[%clk 0:01:28]} 38. Kd2 {[%clk 0:00:50]}  Kc6 {[%clk 0:01:23]} 39. Ba3 {[%clk 0:00:47]}  a5 {[%clk 0:01:22]} 40. b4 {[%clk 0:00:47]}  a4 {[%clk 0:01:21]} 41. Bc1 {[%clk 0:00:46]}  Kxd6 {[%clk 0:01:21]} 42. Kc2 {[%clk 0:00:46]}  Ke5 {[%clk 0:01:19]} 43. Bd2 {[%clk 0:00:44]}  e3 {[%clk 0:01:14]} 44. Be1 {[%clk 0:00:35]}  Ke4 {[%clk 0:01:13]} 45. fxe3 {[%clk 0:00:31]}  Kxe3 {[%clk 0:01:13]} 46. Bd2+ {[%clk 0:00:24]}  Ke2 {[%clk 0:01:13]} 47. g4 {[%clk 0:00:23]}  Ne3+ {[%clk 0:01:12]} 48. Kc1 {[%clk 0:00:21]}  Nxg4 {[%clk 0:01:11]} 49. Bf4 {[%clk 0:00:21]}  Nf2 {[%clk 0:01:10]} 50. Kc2 {[%clk 0:00:20]}  f5 {[%clk 0:01:08]} 51. a3 {[%clk 0:00:18]}  Nd3 {[%clk 0:01:07]} 52. Bc7 {[%clk 0:00:16]}  f4 {[%clk 0:01:08]} 53. Bb6 {[%clk 0:00:14]}  f3 {[%clk 0:01:07]} 54. Bd4 {[%clk 0:00:15]}  f2 {[%clk 0:01:07]} 0-1


[Site "https://www.chess.com"]

[Event "Titled Tuesday Blitz December 06 Early 2022"]
[White "Szyszylo, Rafal"]
[Black "Wieczorek, Zbigniew"]
[WhiteFideId "1109626"]
[BlackFideId "1102001"]
[WhiteElo "1981"]
[BlackElo "2236"]
[Result "0-1"]
[Round "03"]
[TimeControl "180+1"]
[Date "2022.12.07"]
[WhiteClock "0:00:22"]
[BlackClock "0:01:25"]

1. e4 {[%clk 0:02:58]}  g6 {[%clk 0:02:59]} 2. d4 {[%clk 0:02:54]}  Bg7 {[%clk 0:02:59]} 3. Nc3 {[%clk 0:02:53]}  c6 {[%clk 0:02:58]} 4. Nf3 {[%clk 0:02:51]}  d5 {[%clk 0:02:59]} 5. h3 {[%clk 0:02:51]}  dxe4 {[%clk 0:02:55]} 6. Nxe4 {[%clk 0:02:50]}  Bf5 {[%clk 0:02:56]} 7. Ng3 {[%clk 0:02:44]}  Be6 {[%clk 0:02:56]} 8. c4 {[%clk 0:02:41]}  Nf6 {[%clk 0:02:54]} 9. Be2 {[%clk 0:02:29]}  O-O {[%clk 0:02:53]} 10. O-O {[%clk 0:02:29]}  Qc7 {[%clk 0:02:31]} 11. Re1 {[%clk 0:02:26]}  Rd8 {[%clk 0:02:31]} 12. Be3 {[%clk 0:02:25]}  Nbd7 {[%clk 0:02:24]} 13. Ng5 {[%clk 0:02:24]}  Nf8 {[%clk 0:02:23]} 14. Nxe6 {[%clk 0:02:23]}  Nxe6 {[%clk 0:02:23]} 15. Qd2 {[%clk 0:02:18]}  Nxd4 {[%clk 0:02:19]} 16. Bxd4 {[%clk 0:02:17]}  c5 {[%clk 0:02:16]} 17. Bf3 {[%clk 0:02:01]}  Rxd4 {[%clk 0:02:13]} 18. Qe2 {[%clk 0:02:01]}  e6 {[%clk 0:02:07]} 19. b3 {[%clk 0:02:00]}  Rad8 {[%clk 0:02:06]} 20. Rad1 {[%clk 0:02:00]}  b6 {[%clk 0:02:04]} 21. Rxd4 {[%clk 0:01:59]}  Rxd4 {[%clk 0:02:05]} 22. Rd1 {[%clk 0:01:56]}  Qd6 {[%clk 0:02:01]} 23. Rxd4 {[%clk 0:01:55]}  Qxd4 {[%clk 0:02:01]} 24. Kh2 {[%clk 0:01:50]}  h5 {[%clk 0:02:01]} 25. Ne4 {[%clk 0:01:44]}  Nd7 {[%clk 0:02:00]} 26. g3 {[%clk 0:01:41]}  h4 {[%clk 0:02:00]} 27. Kg2 {[%clk 0:01:41]}  hxg3 {[%clk 0:01:59]} 28. fxg3 {[%clk 0:01:41]}  Ne5 {[%clk 0:01:58]} 29. Ng5 {[%clk 0:01:34]}  Nd3 {[%clk 0:01:49]} 30. h4 {[%clk 0:01:29]}  Bf6 {[%clk 0:01:45]} 31. Ne4 {[%clk 0:01:29]}  Be5 {[%clk 0:01:44]} 32. Ng5 {[%clk 0:01:24]}  Bxg3 {[%clk 0:01:30]} 33. Kxg3 {[%clk 0:01:23]}  Qd6+ {[%clk 0:01:30]} 34. Kg4 {[%clk 0:01:03]}  f5+ {[%clk 0:01:29]} 35. Kh3 {[%clk 0:00:58]}  Nf4+ {[%clk 0:01:29]} 36. Kg3 {[%clk 0:00:29]}  Nxe2+ {[%clk 0:01:30]} 37. Kf2 {[%clk 0:00:29]}  Nd4 {[%clk 0:01:30]} 38. Be2 {[%clk 0:00:26]}  Qh2+ {[%clk 0:01:28]} 39. Ke3 {[%clk 0:00:26]}  Qxe2+ {[%clk 0:01:29]} 40. Kf4 {[%clk 0:00:25]}  e5+ {[%clk 0:01:29]} 41. Kg3 {[%clk 0:00:24]}  f4+ {[%clk 0:01:29]} 42. Kh3 {[%clk 0:00:24]}  Qe3+ {[%clk 0:01:28]} 43. Kh2 {[%clk 0:00:23]}  Qg3+ {[%clk 0:01:29]} 44. Kh1 {[%clk 0:00:23]}  Qxh4+ {[%clk 0:01:27]} 45. Nh3 {[%clk 0:00:22]}  Qxh3+ {[%clk 0:01:27]} 46. Kg1 {[%clk 0:00:23]}  Qg3+ {[%clk 0:01:25]} 47. Kh1 {[%clk 0:00:22]}  f3 {[%clk 0:01:24]} 48. b4 {[%clk 0:00:22]}  Qg2# {[%clk 0:01:25]} 0-1


[Site "https://www.chess.com"]